[Event "XII Cracow ICC-A 2024"]
[Site "Krakow"]
[Date "2024.06.28"]
[Round "8.12"]
[White "Rudolf, Michal"]
[Black "Chatalbashev, Boris"]
[Result "0-1"]
[ECO "B31"]
[WhiteElo "2287"]
[BlackElo "2483"]
[Annotator "TA"]
[PlyCount "76"]
[EventDate "2024.06.20"]
[EventType "swiss"]
[EventCountry "POL"]
[SourceTitle "playchess.com"]
[Source "ChessBase"]
[SourceQuality "1"]
[TimeControl "40/5400+30:1800+30"]

{[%evp 11,76,21,32,0,0,0,0,3,25,0,0,0,0,0,0,0,0,0,0,0,14,6,20,8,26,22,19,29,18,0,0,-95,-87,-99,-42,-245,-242,-230,-237,-229,-242,-226,-231,-228,-239,-236,-242,-246,-257,-243,-231,-440,-455,-462,-462,-447,-433,-447,-445,-401,-413,-29984,-29985,-29985,-29986,-29991,-29992]} 1. e4 {[%emt 0:00:04]} c5 {[%emt 0:00:12]} 2. Nf3 {[%emt 0:00:16]} Nc6 {[%emt 0:00:07]} 3. Bb5 {[%emt 0:00:05]} g6 {[%emt 0:00:14]} 4. Bxc6 {[%emt 0:00:24]} bxc6 {[%emt 0:00:06]} 5. O-O {[%emt 0:01:02]} Bg7 {[%emt 0:00:06]} 6. Re1 {[%emt 0:00:25]} Nh6 {[%emt 0:01:09]} 7. h3 {[%emt 0:01:42]} O-O {[%emt 0:00:28]} 8. c3 {[%emt 0:00:03][%cal Bc2c3,Bc3d4][%mdl 32]} f5 {[%emt 0:01:07]} 9. e5 {[%emt 0:02:52] The position is equal.} Nf7 {[%emt 0:00:07]} 10. d4 {[%emt 0:00:27]} cxd4 {[%emt 0:00:05]} 11. cxd4 Bb7 {[%cal Oc6c5]} 12. Nc3 {[%emt 0:02:21]} c5 $1 {[%emt 0:03:33] ...Bxf3 would now be deadly.} 13. d5 {[%emt 0:02:02]} e6 {[%emt 0:00:22]} 14. Bf4 {[%emt 0:04:51]} h6 {[%emt 0:02:06][%cal Bh7h6,Bh6g5,Bg5g4][%mdl 32]} 15. h4 {[%emt 0:00:24]} exd5 {[%emt 0:13:00]} 16. Nxd5 {[%emt 0:00:35]} g5 {[%emt 0:00:08]} 17. hxg5 {[%emt 0:00:37]} hxg5 {[%emt 0:00:06]} 18. Be3 {[%emt 0:03:52]} g4 {[%emt 0:00:49]} (18... Bxe5 $2 {too greedy.} 19. Nxe5 (19. Bxc5 d6 $18) 19... Nxe5 20. Qb3 $18 (20. Bxc5 d6 $18)) 19. Nh2 {[%emt 0:03:32]} Bxe5 {[%emt 0:06:55]} 20. Bxc5 {[%emt 0:05:45]} d6 {[%emt 0:04:11][%cal Og4g3] And now ...g3! would win.} (20... Re8 {keeps more tension.} 21. Nxg4 fxg4 22. Qxg4+ Qg5) 21. Ba3 {[%emt 0:05:18]} (21. Be3 $1 $11 {remains equal.}) 21... Re8 $17 {[%emt 0:08:46]} 22. f4 {[%emt 0:17:14] [#]} Bg7 {[%emt 0:05:22] A strong pair of Bishops.} ({Black should play} 22... gxf3 $1 $17 {( -> ...Bxh2+)} 23. Nxf3 Kg7) 23. Rxe8+ $2 {[%emt 0:10:36] Now White is beyond hope.} ({Better is} 23. Qd3 $15) 23... Qxe8 $19 {[%emt 0:00:06]} 24. Qd3 {[%emt 0:00:12]} Bxd5 {[%emt 0:07:26]} 25. Qxd5 {[%emt 0:00:07]} Qe3+ {[%emt 0:00:07]} 26. Kh1 {[%emt 0:00:06]} Rc8 {[%emt 0:00:24] aiming for ...Rc1+.} 27. Rf1 {[%emt 0:12:43]} Rc1 {[%emt 0:03:46] Strongly threatening ...Bd4.} 28. Qxf5 {[%emt 0:02:06] [#]} Bd4 $1 $40 {[%emt 0:03:31][%mdl 128] Black has strong attack.} ({Stronger than} 28... g3 29. b3 Re1 30. Bb4 $11) 29. Qg6+ {[%emt 0:06:33]} (29. Nxg4 $2 Rxf1+ 30. Kh2 Rh1+ 31. Kxh1 Qg1#) 29... Kh8 {[%emt 0:00:12]} 30. Qh5+ {[%emt 0:00:02]} (30. Qxf7 $2 Rxf1+ 31. Nxf1 Qg1#) 30... Kg7 {[%emt 0:00:09]} 31. Qxg4+ {[%emt 0:00:05]} (31. Nxg4 $2 {is a self mate.} Rxf1+ 32. Kh2 Rh1+ 33. Kxh1 Qg1#) 31... Kf8 {[%emt 0:00:05]} 32. Rxc1 {[%emt 0:00:17]} Qxc1+ {[%emt 0:00:08]} 33. Nf1 {[%emt 0:00:01]} Qxf1+ {[%emt 0:00:12]} 34. Kh2 {[%emt 0:00:02]} Bg1+ {[%emt 0:20:41]} 35. Kh3 {[%emt 0:00:04]} Bf2 {[%emt 0:00:42][%cal Rf1h1]} 36. Qc8+ {[%emt 0:04:54]} (36. Qf3 $19 Kg7 (36... Qh1+ $2 37. Kg4 $19) 37. Qe4) 36... Kg7 {[%emt 0:00:16] Black mates.} 37. Qc3+ {[%emt 0:03:03]} Kh7 {[%emt 0:00:29]} 38. Qc2+ {[%emt 0:00:44]} Kh6 {[%emt 0:00:08] Weighted Error Value: White=0.33/Black=0.03 (flawless) .  Loses game:     	White=1     	---        Mistake:       	White=2     	Black=1      OK:         	White=10    	Black=13     Best:        	White=6     	Black=9      Strong:       	---       	Black=2} 0-1

[Event "XII Cracow ICC-A 2024"]
[Site "Krakow"]
[Date "2024.06.28"]
[Round "8.13"]
[White "Czernek, Tymon"]
[Black "Fus, Jakub"]
[Result "1/2-1/2"]
[ECO "C78"]
[WhiteElo "2316"]
[BlackElo "2455"]
[Annotator "TA"]
[PlyCount "77"]
[EventDate "2024.06.20"]
[EventType "swiss"]
[EventCountry "POL"]
[SourceTitle "playchess.com"]
[Source "ChessBase"]
[SourceQuality "1"]
[TimeControl "40/5400+30:1800+30"]

{[%evp 13,77,0,22,0,0,0,0,0,0,-18,0,0,0,0,0,8,33,28,26,33,44,47,72,68,110,70,82,52,37,0,31,-14,-18,-64,-63,-99,-99,-104,-99,-56,-52,-41,-21,-69,-36,-22,-36,-37,0,-4,0,-12,0,0,0,-16,-3,0,0,0,0,0,0,-2,8,-14]} 1. e4 {[%emt 0:00:03]} e5 {[%emt 0:00:10]} 2. Nf3 {[%emt 0:00:03]} Nc6 {[%emt 0:00:13]} 3. Bb5 {[%emt 0:00:05]} a6 {[%emt 0:00:21]} 4. Ba4 {[%emt 0:00:05]} Nf6 {[%emt 0:00:11]} 5. O-O {[%emt 0:00:14]} Bc5 {[%emt 0:00:11]} 6. d3 {[%emt 0:04:12]} b5 {[%emt 0:02:35]} 7. Bb3 {[%emt 0:00:07]} h6 {[%emt 0:03:28]} 8. Nxe5 {[%emt 0:06:47]} Nxe5 {[%emt 0:00:09]} 9. d4 {[%emt 0:00:03]} Bxd4 {[%emt 0:00:19]} 10. Qxd4 {[%emt 0:00:14]} d6 {[%emt 0:00:07] [#] Hoping for ...c5.} 11. c3 {[%emt 0:04:16]} O-O {[%emt 0:04:07]} 12. f3 {[%emt 0:03:42]} Re8 {[%emt 0:02:18]} 13. Rd1 {[%emt 0:01:37]} Bb7 {[%emt 0:00:34]} 14. a4 {[%emt 0:06:35]} Rb8 {[%emt 0:09:13]} 15. axb5 {[%emt 0:01:31]} axb5 {[%emt 0:00:05]} 16. Na3 {[%emt 0:00:55][%cal Bb1a3,Ba3c2,Bc2d4][%mdl 32]} Qd7 {[%emt 0:00:50][%cal Oe5f3]} 17. Bf4 {[%emt 0:02:09]} Qc6 {[%emt 0:15:17]} 18. Nc2 {[%emt 0:04:02] White is more active.} (18. c4 {looks sharper.} bxc4 19. Nxc4 Nxc4 20. Bxc4 Nxe4 21. Rac1) 18... Bc8 {[%emt 0:18:08]} 19. Qf2 {[%emt 0:02:45]} Nc4 {[%emt 0:02:31]} 20. Nd4 {[%emt 0:02:46]} Qb6 {[%emt 0:00:44]} 21. Kh1 {[%emt 0:08:46]} Bd7 {[%emt 0:02:57]} 22. Rab1 {[%emt 0:04:09]} d5 {[%emt 0:07:49]} 23. Bxc4 {[%emt 0:15:00]} (23. exd5 $11 {might be stronger.} Nxd5 24. Bg3) 23... bxc4 $15 {[%emt 0:01:44]} 24. Qg3 {[%emt 0:03:54][%csl LRc7,LRh6]} Nh5 {[%emt 0:00:37]} ({But not} 24... dxe4 $6 25. Bxc7 Nh5 26. Bxb6 $11) 25. Qh4 {[%emt 0:00:01]} Nxf4 {[%emt 0:00:57]} 26. Qxf4 {[%emt 0:00:02]} dxe4 {[%emt 0:03:43]} 27. fxe4 {[%emt 0:00:01]} Qd6 {[%emt 0:06:52]} 28. Qe3 {[%emt 0:04:54]} (28. Qxd6 $11 {was preferrable.} cxd6 29. Re1) 28... Bg4 {[%emt 0:01:38]} 29. Rd2 {[%emt 0:02:00]} Qg6 {[%emt 0:04:32]} 30. Re1 {[%emt 0:00:02]} Rbd8 {[%emt 0:00:28]} (30... Re7 $5) 31. h3 {[%emt 0:01:22] The position is equal.} Bc8 {[%emt 0:00:08]} 32. Rf2 {[%emt 0:02:02]} Re5 {[%emt 0:06:24]} 33. Nf3 {[%emt 0:02:14]} Re7 {[%emt 0:00:17]} 34. Nd2 {[%emt 0:05:56]} Bb7 {[%emt 0:01:33]} 35. Qc5 {[%emt 0:04:33]} Qg5 {[%emt 0:02:08]} 36. Qxg5 {[%emt 0:01:47]} hxg5 {[%emt 0:00:05]} 37. Rfe2 {[%emt 0:02:07]} Rde8 {[%emt 0:00:05]} 38. Kh2 {[%emt 0:01:15]} f5 {[%emt 0:01:35]} 39. Re3 {[%emt 0:04:50] Weighted Error Value: White=0.14 (very precise) /Black=0.10 (very precise) .  Mistake:       	White=2     	---        Inaccurate:     	White=5     	Black=4      OK:         	White=13    	Black=10     Best:        	White=1     	---} 1/2-1/2

[Event "XII Cracow ICC-A 2024"]
[Site "Krakow"]
[Date "2024.06.28"]
[Round "8.14"]
[White "Lohia, Sohum"]
[Black "Alexiadis, Hristos"]
[Result "1/2-1/2"]
[ECO "B51"]
[WhiteElo "2270"]
[BlackElo "2378"]
[Annotator "RC"]
[PlyCount "69"]
[EventDate "2024.06.20"]
[EventType "swiss"]
[EventCountry "POL"]
[SourceTitle "playchess.com"]
[Source "ChessBase"]
[SourceQuality "1"]
[TimeControl "40/5400+30:1800+30"]

1. e4 {[%emt 0:00:03]} c5 {[%emt 0:06:43]} 2. Nf3 {[%emt 0:00:07]} d6 {[%emt 0:00:04]} 3. Bb5+ {[%emt 0:00:10]} Nd7 {[%emt 0:00:06]} 4. d4 {[%emt 0:00:10]} cxd4 {[%emt 0:00:17]} 5. Nxd4 {[%emt 0:00:11]} Ngf6 {[%emt 0:00:12]} 6. O-O {[%emt 0:00:13]} a6 {[%emt 0:01:00]} 7. Bd3 {[%emt 0:00:12]} Nc5 {[%emt 0:01:08]} 8. Re1 {[%emt 0:00:13]} g6 {[%emt 0:04:39]} 9. c4 {[%emt 0:00:24]} Bg7 {[%emt 0:02:01]} 10. Nc3 {[%emt 0:00:27]} Nxd3 {[%emt 0:03:19]} 11. Qxd3 {[%emt 0:00:11]} O-O {[%emt 0:00:09]} 12. h3 {[%emt 0:00:59]} Nd7 {[%emt 0:05:36]} 13. Be3 {[%emt 0:03:45]} Ne5 {[%emt 0:05:32]} 14. Qe2 {[%emt 0:00:45]} Bd7 {[%emt 0:00:19]} 15. Rac1 {[%emt 0:11:54]} Rc8 {[%emt 0:05:40]} 16. b3 {[%emt 0:01:52]} Nc6 {[%emt 0:01:41]} 17. Qd2 {[%emt 0:02:32]} Re8 {[%emt 0:09:02]} 18. Nd5 {[%emt 0:09:56]} Nxd4 {[%emt 0:01:43]} 19. Bxd4 {[%emt 0:00:10]} Bxd4 {[%emt 0:00:06]} 20. Qxd4 {[%emt 0:00:09]} Be6 {[%emt 0:00:17]} 21. Nf4 {[%emt 0:09:55]} Bxc4 {[%emt 0:13:13]} 22. Rxc4 {[%emt 0:01:59]} e5 {[%emt 0:00:06]} 23. Rxc8 {[%emt 0:00:35]} Qxc8 {[%emt 0:00:04]} 24. Qxd6 {[%emt 0:00:35]} exf4 {[%emt 0:00:03]} 25. Qxf4 {[%emt 0:05:56]} Qc2 {[%emt 0:00:06]} 26. Qg4 {[%emt 0:08:23]} f5 {[%emt 0:18:55]} 27. Qd1 {[%emt 0:09:23]} Qxd1 {[%emt 0:00:08]} 28. Rxd1 {[%emt 0:00:04]} Rxe4 {[%emt 0:00:09]} 29. Rd7 {[%emt 0:00:21]} Rb4 {[%emt 0:00:14]} 30. g3 {[%emt 0:01:45]} a5 {[%emt 0:00:05]} 31. Kg2 {[%emt 0:00:13]} a4 {[%emt 0:00:09]} 32. bxa4 {[%emt 0:00:12]} Rxa4 {[%emt 0:00:04]} 33. Rxb7 {[%emt 0:00:25]} Rxa2 {[%emt 0:00:06]} 34. Kf3 {[%emt 0:00:11]} Ra4 {[%emt 0:00:43]} 35. h4 {[%emt 0:01:04]} 1/2-1/2

[Event "XII Cracow ICC-A 2024"]
[Site "Krakow"]
[Date "2024.06.28"]
[Round "8.15"]
[White "Hollan, Martin"]
[Black "Karolczuk, Iwo"]
[Result "0-1"]
[ECO "B42"]
[WhiteElo "2373"]
[BlackElo "2293"]
[Annotator "RC"]
[PlyCount "136"]
[EventDate "2024.06.20"]
[EventType "swiss"]
[EventCountry "POL"]
[SourceTitle "playchess.com"]
[Source "ChessBase"]
[SourceQuality "1"]
[TimeControl "40/5400+30:1800+30"]

1. e4 {[%emt 0:00:08]} c5 {[%emt 0:00:04]} 2. Nf3 {[%emt 0:00:09]} e6 {[%emt 0:00:05]} 3. d4 {[%emt 0:00:14]} cxd4 {[%emt 0:00:05]} 4. Nxd4 {[%emt 0:00:06]} a6 {[%emt 0:00:06]} 5. Bd3 {[%emt 0:00:23]} Bc5 {[%emt 0:00:06]} 6. Nb3 {[%emt 0:00:10]} Ba7 {[%emt 0:00:07]} 7. Qg4 {[%emt 0:00:30]} Nf6 {[%emt 0:00:09]} 8. Qg3 {[%emt 0:00:14]} d6 {[%emt 0:01:49]} 9. Bg5 {[%emt 0:01:05]} Nc6 {[%emt 0:01:31]} 10. Nc3 {[%emt 0:00:07]} b5 {[%emt 0:00:48]} 11. O-O-O {[%emt 0:00:48]} b4 {[%emt 0:08:06]} 12. Bxf6 {[%emt 0:02:56]} gxf6 {[%emt 0:08:56]} 13. Ne2 {[%emt 0:03:14]} Bb7 {[%emt 0:10:25]} 14. f4 {[%emt 0:03:19]} Qe7 {[%emt 0:16:36]} 15. Bc4 {[%emt 0:01:32]} O-O-O {[%emt 0:02:46]} 16. Qd3 {[%emt 0:00:14]} a5 {[%emt 0:00:46]} 17. Ba6 {[%emt 0:15:15]} Bxa6 {[%emt 0:03:02]} 18. Qxa6+ {[%emt 0:00:08]} Qb7 {[%emt 0:00:08]} 19. Qxb7+ {[%emt 0:01:26]} Kxb7 {[%emt 0:00:09]} 20. Rd3 {[%emt 0:00:38]} a4 {[%emt 0:05:09]} 21. Nd2 {[%emt 0:00:35]} Bc5 {[%emt 0:02:53]} 22. Rd1 {[%emt 0:00:55]} Rhg8 {[%emt 0:00:44]} 23. g3 {[%emt 0:00:16]} Rd7 {[%emt 0:01:46]} 24. Kb1 {[%emt 0:11:40]} Rgd8 {[%emt 0:01:48]} 25. Nf3 {[%emt 0:01:37]} Kb6 {[%emt 0:05:15]} 26. c3 {[%emt 0:10:25]} bxc3 {[%emt 0:02:57]} 27. Nxc3 {[%emt 0:00:48]} Ra8 {[%emt 0:09:40]} 28. a3 {[%emt 0:00:51]} Ne7 {[%emt 0:03:14]} 29. Ka2 {[%emt 0:09:53]} Raa7 {[%emt 0:02:39]} 30. e5 {[%emt 0:07:31]} d5 {[%emt 0:04:04]} 31. exf6 {[%emt 0:00:26]} Ng8 {[%emt 0:00:35]} 32. f5 {[%emt 0:01:20]} Nxf6 {[%emt 0:00:17]} 33. fxe6 {[%emt 0:00:14]} fxe6 {[%emt 0:00:10]} 34. Re1 {[%emt 0:00:13]} Re7 {[%emt 0:01:59]} 35. Rd2 {[%emt 0:07:39]} Ra6 {[%emt 0:01:53]} 36. Rde2 {[%emt 0:02:48]} Kc7 {[%emt 0:00:40]} 37. g4 {[%emt 0:00:36]} Kd8 {[%emt 0:01:45]} 38. g5 {[%emt 0:01:18]} Nd7 {[%emt 0:00:56]} 39. Nd2 {[%emt 0:08:35]} Nf8 {[%emt 0:01:21]} 40. h4 {[%emt 0:05:10]} Ng6 {[%emt 0:02:46]} 41. Rh2 {[%emt 0:08:33]} Bd6 {[%emt 0:06:20]} 42. Rhh1 {[%emt 0:01:44]} Bg3 {[%emt 0:06:34]} 43. Reg1 {[%emt 0:01:33]} Bxh4 {[%emt 0:01:20]} 44. Rg4 {[%emt 0:00:17]} Bf2 {[%emt 0:00:12]} 45. Rxa4 {[%emt 0:01:45]} Rxa4 {[%emt 0:00:25]} 46. Nxa4 {[%emt 0:00:06]} Be3 {[%emt 0:02:32]} 47. Nf1 {[%emt 0:00:58]} Bxg5 {[%emt 0:00:18]} 48. b4 {[%emt 0:00:11]} Bf4 {[%emt 0:02:44]} 49. Kb3 {[%emt 0:02:05]} e5 {[%emt 0:00:45]} 50. Nc3 {[%emt 0:00:47]} Rd7 {[%emt 0:01:21]} 51. Rh5 {[%emt 0:00:19]} h6 {[%emt 0:03:20]} 52. Rf5 {[%emt 0:08:05]} Ke7 {[%emt 0:00:12]} 53. a4 {[%emt 0:02:31]} Ke6 {[%emt 0:00:28]} 54. Rh5 {[%emt 0:00:06]} e4 {[%emt 0:00:12]} 55. a5 {[%emt 0:03:09]} e3 {[%emt 0:01:30]} 56. b5 {[%emt 0:01:08]} d4 {[%emt 0:01:13]} 57. Ne2 {[%emt 0:00:24]} Bg5 {[%emt 0:00:15]} 58. Rh2 {[%emt 0:01:38]} d3 {[%emt 0:00:38]} 59. Nc3 {[%emt 0:00:05]} Ne5 {[%emt 0:02:49]} 60. a6 {[%emt 0:01:37]} Nf3 {[%emt 0:02:12]} 61. b6 {[%emt 0:06:24]} Nxh2 {[%emt 0:01:44]} 62. a7 {[%emt 0:00:26]} e2 {[%emt 0:02:00]} 63. Nxh2 {[%emt 0:01:29]} e1=Q {[%emt 0:00:51]} 64. a8=Q {[%emt 0:00:06]} Kf7 {[%emt 0:01:19]} 65. b7 {[%emt 0:01:26]} Qe6+ {[%emt 0:01:04]} 66. Ka3 {[%emt 0:00:38]} Be7+ {[%emt 0:01:07]} 67. Kb2 {[%emt 0:00:06]} Qb6+ {[%emt 0:00:13]} 68. Kc1 {[%emt 0:00:04]} Bg5+ {[%emt 0:00:51]} 0-1

[Event "XII Cracow ICC-A 2024"]
[Site "Krakow"]
[Date "2024.06.28"]
[Round "8.16"]
[White "Cieslak, Patryk"]
[Black "Backiel, Hubert"]
[Result "1-0"]
[ECO "B81"]
[WhiteElo "2358"]
[BlackElo "2200"]
[Annotator "RC"]
[PlyCount "105"]
[EventDate "2024.06.20"]
[EventType "swiss"]
[EventCountry "POL"]
[SourceTitle "playchess.com"]
[Source "ChessBase"]
[SourceQuality "1"]
[TimeControl "40/5400+30:1800+30"]

1. e4 {[%emt 0:00:02]} c5 {[%emt 0:00:05]} 2. Nf3 {[%emt 0:00:03]} e6 {[%emt 0:00:04]} 3. d4 {[%emt 0:00:13]} cxd4 {[%emt 0:00:05]} 4. Nxd4 {[%emt 0:00:03]} Nf6 {[%emt 0:00:05]} 5. Nc3 {[%emt 0:00:04]} d6 {[%emt 0:00:03]} 6. g4 {[%emt 0:00:32]} e5 {[%emt 0:00:04]} 7. Nf5 {[%emt 0:00:13]} h5 {[%emt 0:00:04]} 8. Bg5 {[%emt 0:00:15]} hxg4 {[%emt 0:00:24]} 9. Nd5 {[%emt 0:00:10]} Bxf5 {[%emt 0:00:06]} 10. Bxf6 {[%emt 0:00:13]} gxf6 {[%emt 0:00:08]} 11. exf5 {[%emt 0:00:03]} Bh6 {[%emt 0:00:39]} 12. h4 {[%emt 0:00:15]} gxh3 {[%emt 0:10:01]} 13. Rxh3 {[%emt 0:00:58]} Nc6 {[%emt 0:00:37]} 14. c3 {[%emt 0:23:20]} Kf8 {[%emt 0:01:50]} 15. Bg2 {[%emt 0:11:43]} Kg7 {[%emt 0:10:25]} 16. Qg4+ {[%emt 0:00:51]} Bg5 {[%emt 0:00:21]} 17. Rxh8 {[%emt 0:01:01]} Qxh8 {[%emt 0:00:39]} 18. Ke2 {[%emt 0:01:54]} Qh4 {[%emt 0:06:04]} 19. Qxh4 {[%emt 0:01:16]} Bxh4 {[%emt 0:00:06]} 20. Rd1 {[%emt 0:00:40]} Rd8 {[%emt 0:08:31]} 21. b4 {[%emt 0:04:32]} Rd7 {[%emt 0:15:42]} 22. Be4 {[%emt 0:08:11]} Ne7 {[%emt 0:09:33]} 23. Nxe7 {[%emt 0:01:03]} Rxe7 {[%emt 0:00:12]} 24. Rxd6 {[%emt 0:00:35]} Rc7 {[%emt 0:00:09]} 25. Rd3 {[%emt 0:03:21]} Kh6 {[%emt 0:00:59]} 26. f3 {[%emt 0:04:28]} Kg5 {[%emt 0:03:56]} 27. Kd2 {[%emt 0:01:49]} Kf4 {[%emt 0:09:27]} 28. Rd8 {[%emt 0:00:41]} Bg5 {[%emt 0:05:34]} 29. Kd3 {[%emt 0:00:58]} Kg3 {[%emt 0:08:48]} 30. Rb8 {[%emt 0:09:30]} Rd7+ {[%emt 0:04:39]} 31. Kc4 {[%emt 0:00:42]} Rc7+ {[%emt 0:00:39]} 32. Kb3 {[%emt 0:02:21]} b6 {[%emt 0:01:09]} 33. c4 {[%emt 0:03:31]} Be3 {[%emt 0:01:24]} 34. Rg8+ {[%emt 0:03:49]} Kf2 {[%emt 0:03:59]} 35. Bd5 {[%emt 0:01:49]} Bd2 {[%emt 0:00:56]} 36. Ka4 {[%emt 0:01:51]} Ke3 {[%emt 0:00:18]} 37. Kb5 {[%emt 0:00:53]} Kd4 {[%emt 0:00:33]} 38. Rd8 {[%emt 0:00:33]} Kc3 {[%emt 0:00:28]} 39. Be4 {[%emt 0:02:33]} a6+ {[%emt 0:00:39]} 40. Kxb6 {[%emt 0:01:35]} Rxc4 {[%emt 0:00:31]} 41. Rd3+ {[%emt 0:30:53]} Kc2 {[%emt 0:01:08]} 42. Rd4+ {[%emt 0:00:00]} Kc3 {[%emt 0:00:08]} 43. Rd3+ {[%emt 0:00:00]} Kc2 {[%emt 0:03:04]} 44. Rb3+ {[%emt 0:00:00]} Kd1 {[%emt 0:00:16]} 45. Kxa6 {[%emt 0:00:00]} Rxb4 {[%emt 0:05:11]} 46. Rxb4 {[%emt 0:00:00]} Bxb4 {[%emt 0:00:06]} 47. a4 {[%emt 0:00:00]} Ke2 {[%emt 0:00:09]} 48. Kb5 {[%emt 0:00:00]} Bc3 {[%emt 0:00:03]} 49. a5 {[%emt 0:00:00]} Ke3 {[%emt 0:00:04]} 50. a6 {[%emt 0:00:00]} Bd4 {[%emt 0:00:04]} 51. Kc6 {[%emt 0:00:00]} Kf4 {[%emt 0:00:04]} 52. Kb7 {[%emt 0:00:00]} Ba7 {[%emt 0:00:05]} 53. Kxa7 {[%emt 0:00:00]} 1-0

[Event "XII Cracow ICC-A 2024"]
[Site "Krakow"]
[Date "2024.06.28"]
[Round "8.17"]
[White "Marszalek, Maciej"]
[Black "Turski, Bartlomiej"]
[Result "1/2-1/2"]
[ECO "A20"]
[WhiteElo "2255"]
[BlackElo "2334"]
[Annotator "RC"]
[PlyCount "53"]
[EventDate "2024.06.20"]
[EventType "swiss"]
[EventCountry "POL"]
[SourceTitle "playchess.com"]
[Source "ChessBase"]
[SourceQuality "1"]
[TimeControl "40/5400+30:1800+30"]

1. c4 {[%emt 0:00:01]} e5 {[%emt 0:00:08]} 2. e3 {[%emt 0:00:14]} Nf6 {[%emt 0:00:24]} 3. Nc3 {[%emt 0:00:05]} Bb4 {[%emt 0:01:45]} 4. Nge2 {[%emt 0:00:32]} O-O {[%emt 0:05:11]} 5. a3 {[%emt 0:02:27]} Be7 {[%emt 0:02:14]} 6. Qc2 {[%emt 0:03:49]} c6 {[%emt 0:03:45]} 7. d4 {[%emt 0:01:54]} exd4 {[%emt 0:01:50]} 8. Nxd4 {[%emt 0:00:08]} d5 {[%emt 0:02:04]} 9. Nf5 {[%emt 0:08:05]} Re8 {[%emt 0:10:24]} 10. Nxe7+ {[%emt 0:01:16]} Rxe7 {[%emt 0:04:35]} 11. Be2 {[%emt 0:02:37]} Be6 {[%emt 0:07:55]} 12. cxd5 {[%emt 0:03:21]} cxd5 {[%emt 0:01:49]} 13. O-O {[%emt 0:02:24]} d4 {[%emt 0:10:04]} 14. Nb5 {[%emt 0:16:09]} Nc6 {[%emt 0:04:14]} 15. Nxd4 {[%emt 0:06:55]} Nxd4 {[%emt 0:01:39]} 16. exd4 {[%emt 0:00:02]} Qxd4 {[%emt 0:11:08]} 17. Be3 {[%emt 0:05:39]} Qe5 {[%emt 0:06:01]} 18. Qc5 {[%emt 0:04:53]} Nd5 {[%emt 0:07:47]} 19. Bf3 {[%emt 0:03:36]} b6 {[%emt 0:04:27]} 20. Qd4 {[%emt 0:00:32]} Qxd4 {[%emt 0:00:13]} 21. Bxd4 {[%emt 0:00:02]} Rd8 {[%emt 0:00:58]} 22. h3 {[%emt 0:01:55]} Red7 {[%emt 0:01:32]} 23. Be5 {[%emt 0:02:52]} f6 {[%emt 0:01:25]} 24. Bg3 {[%emt 0:01:46]} Kf7 {[%emt 0:00:06]} 25. Rfe1 {[%emt 0:00:11]} Ne7 {[%emt 0:01:46]} 26. Bf4 {[%emt 0:05:16]} Nf5 {[%emt 0:02:32]} 27. Be3 {[%emt 0:06:05]} 1/2-1/2